Cogmind - Beta 15 X1 @@@ ROGUE MODE // 2024.11.17 @ 22:01:09 Player: Some Pennies Result: Destroyed by P-70 Sage with High-powered Shock Rifle Performance ------------- Evolutions (5) 2500 Regions Visited (11) 2200 Robots Destroyed (130) 650 Value Destroyed (4304) 4304 Prototype IDs (34) 680 Alien Tech Used (0) 0 Bonus (1114) 1114 TOTAL SCORE: 11448 Bonus ------- High Alert Combat Kills 60 Follower Combat Kills 266 Entered DSFs 500 Met Data Miner 300 Friendly Fire -12 Cogmind --------- Core Integrity 0/1000 Matter 290/300 Energy 10/100 System Corruption 12% Temperature Cool (0) Movement Core (50) Location -5/Factory Parts ------- > --- POWER (2) -------- (None) > --- PROPULSION (4) --- (None) > --- UTILITY (8) ------ Advanced Signal Interpreter Transport Network Coupler Hacking Suite > --- WEAPON (3) ------- (None) > --- INVENTORY (5) ---- Advanced Heat Sink Advanced Heat Sink Advanced Cooling System Improved Component Analysis Suite Improved Corruption Screen Peak State ------------ > --- POWER ------------ Momentum-Ion Engine > --- PROPULSION ------- Cooled-NPT Exoskeleton > --- UTILITY ---------- Armored Scrap Engine Large Storage Unit Improved Sensor Array Advanced Signal Interpreter Transport Network Coupler Hacking Suite Improved Corruption Screen > --- WEAPON ----------- Cld. Thermal Construct/G Greatsword > --- INVENTORY -------- Advanced Cooling System Improved Component Analysis Suite Greatsword [Rating: 84] Favorites ----------- Power Constructs Engine Constructs Propulsion Constructs Treads Light Treads Leg Constructs Wheel Subdweller Monowheel Hover Unit Combat Gravmag System Utility Armored Scrap Engine Device Armored Scrap Engine Storage High-capacity Storage Unit Processor Advanced Signal Interpreter Hackware Hacking Suite Protection Scrap Shield Weapon Constructs Energy Gun Constructs Energy Cannon Subdweller Beam Cannon Ballistic Gun Subdweller Machine Gun Ballistic Cannon Constructs Launcher Subdweller Shrapnel Launcher Special Weapon Mining Laser Slashing Weapon Greatsword Piercing Weapon Lance Special Melee Weapon Improved Datajack Build | -11 -10 -10 -9 -7 -7 -7 -7 -6 -6 -6 -5 ------- Run | Yrd Mat Sub Rec Fac Low Low Dat Pro Fac DSF Fac Slots Evolved 10 | . . . . 6 . . . . 2 . 2 Power 1 | . . . . 1 . . . . . . . Propulsion 2 | . . . . 1 . . . . . . 1 Utility 6 | . . . . 3 . . . . 2 . 1 Weapon 1 | . . . . 1 . . . . . . . Parts Attached 71 | 7 4 15 4 7 3 4 1 2 5 1 18 Power 6 | 1 . 2 . . . 2 . . . . 1 Engine 6 | 1 . 2 . . . 2 . . . . 1 Core . | . . . . . . . . . . . . Reactor . | . . . . . . . . . . . . Propulsion 12 | 2 . 5 3 1 . . . . . . 1 Treads 6 | 2 . 1 3 . . . . . . . . Leg 2 | . . 2 . . . . . . . . . Wheel 3 | . . 2 . 1 . . . . . . . Hover 1 | . . . . . . . . . . . 1 Flight . | . . . . . . . . . . . . Utility 35 | 2 2 2 1 5 3 2 1 1 4 . 12 Device 11 | 1 . . 1 2 2 . . . . . 5 Storage 4 | 1 2 . . . . . . . . . 1 Processor 8 | . . . . 2 . . . . 3 . 3 Hackware 3 | . . . . . . . . 1 1 . 1 Protection 9 | . . 2 . 1 1 2 1 . . . 2 Artifact . | . . . . . . . . . . . . Weapon 18 | 2 2 6 . 1 . . . 1 1 1 4 Energy Gun 6 | 2 . 3 . 1 . . . . . . . Energy Cannon 2 | . . 1 . . . . . 1 . . . Ballistic Gun 1 | . . 1 . . . . . . . . . Ballistic Cannon . | . . . . . . . . . . . . Launcher 3 | . 1 1 . . . . . . . . 1 Special Weapon 1 | . 1 . . . . . . . . . . Impact Weapon . | . . . . . . . . . . . . Slashing Weapon 2 | . . . . . . . . . . . 2 Piercing Weapon 2 | . . . . . . . . . . 1 1 Special Melee Weapon 1 | . . . . . . . . . 1 . . Unidentified Prototypes 2 | . . . 1 1 . . . . . . . Parts Lost 39 | . . . . 1 . 7 . 6 . 2 23 Power 9 | . . . . . . 2 . 1 . . 6 Propulsion 6 | . . . . . . . . . . 1 5 Utility 15 | . . . . . . 3 . 2 . 1 9 Weapon 9 | . . . . 1 . 2 . 3 . . 3 Highest Loss Streak 6 | . . . . 1 . 6 . 6 . 1 6 To Critical Strikes 2 | . . . . . . 1 . 1 . . . Average Backups 8 | 2 8 4 4 7 14 15 14 13 1 . 4 Power . | . . . . . . . . . . . . Propulsion . | . . . . . 3 2 . . . . . Utility 4 | 1 3 . 1 4 8 10 11 11 1 . 3 Weapon 1 | 1 3 2 2 2 2 2 2 1 . . . Tool/Special . | . . . . . . . . . . . . Unused Backups 34 | 2 2 7 . . 1 6 . 8 . . 8 Power . | . . . . . . . . . . . . Propulsion 7 | . 1 . . . 1 5 . . . . . Utility 21 | 1 . 4 . . . 1 . 7 . . 8 Weapon 4 | 1 1 2 . . . . . . . . . Tool/Special 2 | . . 1 . . . . . 1 . . . Average Slot Usage (%) 67 | . 99 74 71 66 68 62 48 43 42 51 57 Engine 6 | . 14 13 13 7 . 2 . . . . 1 Core 2 | . . . . . 6 5 7 6 . . 1 Treads 6 | . 28 14 8 2 1 4 . . . . 1 Leg 3 | . . 2 10 1 5 1 7 7 6 6 2 Wheel 1 | . . 3 . . . . . . . . 1 Device 8 | . 14 . 4 7 15 14 9 7 8 12 11 Storage 4 | . 14 . . 5 7 7 7 6 . . 2 Processor 3 | . . . . 6 . . . . 11 13 13 Hackware 1 | . . . . . . . . . 12 8 5 Protection 7 | . . 13 9 6 6 6 7 6 . . 1 Energy Gun 8 | . 24 18 13 9 . . . . . . 2 Energy Cannon 4 | . . 5 4 4 9 7 . . . . 1 Ballistic Gun 3 | . . 2 5 5 4 3 7 5 . . . Ballistic Cannon 1 | . . . . . 6 3 . . . . 1 Peak Build Rating 84 | 7 8 46 48 58 75 74 58 71 51 52 84 Average Rating 49 | 5 7 30 41 51 67 63 57 54 45 50 70 On Entrance 38 | . 7 8 46 36 51 73 56 58 33 51 47 Naked Turns . | . . . . . . . . . . . . Heaviest Build 90 | 15 50 90 90 67 73 84 90 90 3 5 70 Greatest Support 121 | 40 40 40 60 47 108 108 84 84 84 84 121 Greatest Overweight (x) 16 | . 16 8 2 3 2 . 1 1 . 1 1 Average Overweight (x) . | . . 2 1 1 . . . . . . . Largest Inventory Capacity 20 | 8 20 20 5 20 20 20 20 20 5 5 15 Average Capacity 12 | 7 11 5 5 17 20 20 20 18 5 5 9 Most Carried 20 | 5 11 13 5 11 19 20 17 17 4 3 10 Average Carried 9 | 2 8 5 5 8 15 17 16 14 2 1 4 Final Capacity 20 | 8 20 5 5 20 20 20 20 5 5 5 5 Final Carried 19 | 4 11 5 5 11 19 16 16 5 . 2 5 Scrap Engine Consumption 277 | . . . 34 87 9 25 . 1 4 25 92 Constructs Created 14 | . . . 4 1 1 1 . . . . 7 Constructs Modified 94 | . . . 8 21 18 9 . . . . 38 Class Distribution -------------------- 48% | Construct 21% | Subdweller-Tank 20% | Mutant Dominant Class ---------------- Mutant | -10/Materials Subdweller-Tank | -10/Subcaves Subdweller-Tank | -9/Recycling Construct | -7/Factory Construct | -7/Lower Caves Construct | -7/Lower Caves Construct | -7/Data Miner Construct | -6/Proximity Caves Hacker-Mutant | -6/Factory Mutant | -6/DSF Construct | -5/Factory Resources | -11 -10 -10 -9 -7 -7 -7 -7 -6 -6 -6 -5 ----------- Run | Yrd Mat Sub Rec Fac Low Low Dat Pro Fac DSF Fac Matter Collected 1863 | 270 166 266 137 244 182 130 . 27 . 69 372 Remotely . | . . . . . . . . . . . . Salvage Created 7313 | 160 486 206 892 1415 1224 521 . 157 . 65 2187 Parts 303 | 14 27 13 36 71 32 15 . 10 . 5 80 Haulers Intercepted 6 | . 2 . . 2 . . . . . . 2 Recyclers Shooed 13 | . 5 . 4 2 . . . . . . 2 Parts Field Recycled . | . . . . . . . . . . . . Retrieved Matter . | . . . . . . . . . . . . Parts Self-Destructed 55 | . . 9 . . 12 16 . 18 . . . Prevented . | . . . . . . . . . . . . Kills | -11 -10 -10 -9 -7 -7 -7 -7 -6 -6 -6 -5 ------- Run | Yrd Mat Sub Rec Fac Low Low Dat Pro Fac DSF Fac Combat Hostiles Destroyed 92 | . 10 7 6 18 5 10 . 5 . 3 28 Melee 22 | . . . . . . . . . . 3 19 Guns 34 | . 5 4 4 11 1 5 . 3 . . 1 Cannons 24 | . . 2 2 7 3 4 . . . . 6 AOE 7 | . 5 1 . . . . . 1 . . . Classes Destroyed 22 | 2 5 3 2 1 1 4 . 2 . 1 1 Worker 3 | . 1 . . 2 . . . . . . . Builder 1 | . . . . . . . . . . . 1 Tunneler 5 | 5 . . . . . . . . . . . Hauler 6 | . 2 . . 2 . . . . . . 2 Recycler 14 | 1 2 . 6 2 . . . . . . 3 Minesweeper 1 | . . . . . 1 . . . . . . Mechanic 1 | . . . . . . . . 1 . . . Drone 2 | . . . . . . . . 2 . . . Turret 1 | . . 1 . . . . . . . . . Watcher 6 | . 2 . . 4 . . . . . . . Swarmer 15 | . 6 4 . . . 1 . 1 . . 3 Cutter 3 | . . . . . . . . . . 3 . Grunt 43 | . 4 . . 10 5 3 . 1 . . 20 Brawler 2 | . . . . . . 1 . 1 . . . Duelist 1 | . . . . . . 1 . . . . . Sentry 10 | . . . 4 5 . 1 . . . . . Programmer 8 | . . . . 3 . . . . . . 5 Behemoth 1 | . . . . . . 1 . . . . . Artisan 1 | . . 1 . . . . . . . . . Subdweller 3 | . . 3 . . . . . . . . . Scrapper 2 | . . . 2 . . . . . . . . Thief 2 | . . . . . . 2 . . . . . Best Kill Streak 6 | 6 6 3 5 5 3 4 . 3 . 3 4 Combat Bots Only 5 | . 5 3 2 3 3 4 . 2 . 3 4 Max Kills in Single Turn 2 | 1 2 1 1 1 1 1 . 1 . 1 1 Gunslinging . | . . . . . . . . . . . . Exploded 2 | . 2 1 . . . . . 1 . . . Melee 1 | . . . . . . . . . . 1 1 Uniques/NPCs Destroyed . | . . . . . . . . . . . . Combat | -11 -10 -10 -9 -7 -7 -7 -7 -6 -6 -6 -5 -------- Run | Yrd Mat Sub Rec Fac Low Low Dat Pro Fac DSF Fac Hostile Shots Fired 953 | . 27 31 17 164 4 169 . 69 . 48 424 Missed 268 | . 5 9 2 44 1 50 . 15 . 15 127 Damage Taken 12425 | . 246 385 334 1204 47 1890 . 1495 . 693 6131 Core 2007 | . 59 30 67 153 . 367 . 152 . 159 1020 Absorbed by Shields 48 | . . . . . . . . . . . 48 Ignored by Resistances 36 | . . . . . . 36 . . . . . Regen/Repaired (Parts) 2841 | . . . 40 243 452 715 . . . 100 1291 Core Remaining (%) 55 | 100 . . 37 . . . . 4 . 81 . Volleys Fired 380 | 12 54 36 36 57 38 57 . 24 . . 66 Largest 4 | 2 2 4 4 3 3 3 . 2 . . 2 Hottest 230 | 100 100 230 230 181 171 182 . 84 . . 180 Shots Fired 673 | 24 94 72 69 157 66 94 . 25 . . 72 Gun 406 | 24 85 58 60 104 6 32 . 19 . . 18 Cannon 250 | . . 11 9 53 60 62 . 1 . . 54 Launcher 13 | . 5 3 . . . . . 5 . . . Special 4 | . 4 . . . . . . . . . . Kinetic 195 | . . 6 15 78 22 44 . 24 . . 6 Thermal 450 | 24 89 66 54 72 44 50 . 1 . . 50 Explosive 5 | . 5 . . . . . . . . . . Electromagnetic 23 | . . . . 7 . . . . . . 16 Robot Hit Streak 21 | 9 8 5 7 21 17 19 . 11 . . 21 Robot Miss Streak 7 | 1 3 4 3 7 4 7 . 5 . . 2 Penetration Max 1 | . . . . 1 . . . . . . . Secondary Targets 2 | . 1 . . 1 . . . . . . . Max Gunslinging Chain 1 | . 1 . . 1 . . . . . . . Shots Hit Robots 522 | 16 54 34 44 108 55 85 . 20 1 3 102 Core Hits 337 | 7 23 17 17 84 67 49 . 16 . 3 54 Critical Kills 4 | . . . . . 2 1 . 1 . . . Critical Parts Destroyed 4 | . . . 1 . 2 1 . . . . . Critical Strikes 31 | . 6 2 1 . 4 2 . 1 . . 15 Burn 8 | . 6 2 . . . . . . . . . Meltdown 1 | . . . . . . . . 1 . . . Destroy 7 | . . . 1 . 4 2 . . . . . Sever 8 | . . . . . . . . . . . 8 Impale 7 | . . . . . . . . . . . 7 Melee Attacks 95 | . . . . . . . . . 1 5 89 Impact . | . . . . . . . . . . . . Slashing 57 | . . . . . . . . . . . 57 Piercing 37 | . . . . . . . . . . 5 32 Sneak Attacks 6 | . . . . . . . . . 1 . 5 Combat Hostiles . | . . . . . . . . . . . . Follow-up Attacks . | . . . . . . . . . . . . Damage Inflicted 14021 | 199 885 918 1076 2817 940 1619 . 985 5 89 4488 Guns 5334 | 199 686 467 880 1626 113 584 . 289 . . 490 Cannons 4470 | . . 169 165 1154 827 1035 . 48 . . 1072 Explosions 1147 | . 191 282 . . . . . 648 . . 26 Melee 2989 | . . . . . . . . . . 89 2900 Ramming 81 | . 8 . 31 37 . . . . 5 . . Kinetic 4141 | . . 282 182 1423 340 911 . 937 . . 66 Thermal 5978 | 199 686 636 863 1224 600 708 . 48 . . 1014 Explosive 191 | . 191 . . . . . . . . . . Electromagnetic 641 | . . . . 133 . . . . . . 508 Impact . | . . . . . . . . . . . . Slashing 2208 | . . . . . . . . . . . 2208 Piercing 781 | . . . . . . . . . . 89 692 Highest Corruption 12 | . . . . . . . . 4 . . 12 Average Corruption 3 | . . . . . . . . 4 . . 3 Corruption Purged . | . . . . . . . . . . . . Corruption Blocked 15 | . . . . . . . . . . . 15 Effects 15 | . . . . . . . . 1 . . 14 Message Errors 3 | . . . . . . . . . . . 3 Matter Fused 7 | . . . . . . . . . . . 7 Energy Discharges 1 | . . . . . . . . 1 . . . Data Loss (minor) 1 | . . . . . . . . . . . 1 Data Loss (major) 1 | . . . . . . . . . . . 1 Misdirections 2 | . . . . . . . . . . . 2 Overload Shots 3 | . . . . 1 . . . . . . 2 Overflow Damage 258 | . . 8 . . 9 8 . 8 . . 225 Projectiles 32 | . . . . . 9 8 . . . . 15 Explosions 16 | . . 8 . . . . . 8 . . . Melee 210 | . . . . . . . . . . . 210 Knockbacks 20 | . . . . 6 5 8 . . . . 1 Impact 1 | . . . . 1 . . . . . . . Kinetic 18 | . . . . 5 5 7 . . . . 1 Secondary 1 | . . . . . . 1 . . . . . Self-Inflicted Damage 95 | . 37 . . . . . . . . . 58 Shots 3 | . 1 . . . . . . . . . 2 Rammed 8 | . 1 . 3 4 . . . . . . . Targets Rammed 18 | . 2 . 6 6 . . . . 4 . . Kicked 8 | . . . 3 1 . . . . 4 . . Crushed 2 | . 1 . . 1 . . . . . . . Highest Temperature 531 | 156 169 304 531 350 438 403 . 356 . . 253 Average Temperature 104 | 54 52 71 140 118 129 124 . 139 . . 63 Received Heat Transfer 2999 | . 51 69 172 369 27 637 . 279 . 153 1242 Effects 7 | . . . 3 1 3 . . . . . . Energy Bleed 1 | . . . . . 1 . . . . . . Interference 3 | . . . 2 1 . . . . . . . Matter Decay 1 | . . . 1 . . . . . . . . Damage (major) 2 | . . . . . 2 . . . . . . Siege Activations . | . . . . . . . . . . . . Martial Activations . | . . . . . . . . . . . . Shielding Activations . | . . . . . . . . . . . . Robots Disrupted . | . . . . . . . . . . . . Combat Hostiles . | . . . . . . . . . . . . Robots Corrupted 2 | . . . . . . . . . . . 2 Combat Hostiles 2 | . . . . . . . . . . . 2 Parts Fried 4 | . . . . . . . . . . . 4 Impact Corruptions . | . . . . . . . . . . . . Robots Melted 6 | . 1 . . . 3 1 . 1 . . . Combat Hostiles 3 | . . . . . 1 1 . 1 . . . Parts Melted 41 | 3 9 . 1 3 17 8 . . . . . Heat Transferred 17152 | 592 2479 1189 963 2549 4514 3626 . . . . 1240 Parts Sabotaged . | . . . . . . . . . . . . Parts Stolen 1 | . . . . . . 1 . . . . . Parts Stripped . | . . . . . . . . . . . . Power Chain Reactions . | . . . . . . . . . . . . Alert | -11 -10 -10 -9 -7 -7 -7 -7 -6 -6 -6 -5 ------- Run | Yrd Mat Sub Rec Fac Low Low Dat Pro Fac DSF Fac Maximum Alert Level 2 | . 1 . . 2 . . . . 2 2 2 Low Security (%) 63 | 100 89 . 100 14 . . . . . . 61 Level 1 26 | . 10 . . 84 . . . . . . 23 Level 2 9 | . . . . 1 . . . . 100 100 15 Level 3 . | . . . . . . . . . . . . Level 4 . | . . . . . . . . . . . . Level 5 . | . . . . . . . . . . . . High Security . | . . . . . . . . . . . . Max Security . | . . . . . . . . . . . . Peak Influence 662 | 10 223 . 69 400 . . . . 662 492 630 Initial 662 | . . . 30 355 . . . . 662 402 252 Average 161 | 2 123 . 11 275 . . . . 622 443 179 Influence Increases 4542 | 30 419 185 354 946 125 242 . 290 633 100 1218 Destroy 0b10 Robot/C 1820 | . 200 100 80 360 100 180 . 180 . 60 560 Destroy 0b10 Robot/NC 210 | 30 35 . 35 50 15 . . 15 . . 30 Destroy Leader 314 | . 38 10 . 102 10 30 . 10 . 10 104 Allied During Kill 61 | . . . 4 . . 2 . 55 . . . Successful Hack 94 | . 46 . 20 25 . . . . 3 . . Select Force Hacks 210 | . . . 210 . . . . . . . . Disable Machine 75 | . 30 . . 15 . . . . . . 30 Destroy Structure 118 | . 55 . 5 14 . . . . . . 44 Advance Influence 950 | . . . . 350 . . . . 600 . . Lose Combat Pursuer 690 | . 15 75 . 30 . 30 . 30 30 30 450 Influence Decreases 3300 | 30 374 145 370 563 368 237 . 191 120 20 882 Time Decay 2894 | 30 374 145 370 553 368 211 . 91 120 . 632 Lost Part 326 | . . . . 10 . 6 . 60 . 20 230 Lost Ally 80 | . . . . . . 20 . 40 . . 20 Squads Dispatched 19 | . . . . 5 . 1 . 1 . 1 11 Investigation 1 | . . . . . . . . . . . 1 Extermination 6 | . . . . 2 . . . . . . 4 Reinforcement 9 | . . . . 2 . . . . . 1 6 Assault 2 | . . . . . . 1 . 1 . . . Garrison 1 | . . . . 1 . . . . . . . Intercept . | . . . . . . . . . . . . Searches Triggered . | . . . . . . . . . . . . Construction Impeded 1 | . . . . . . . . . . . 1 Haulers Reinforced 3 | . . . . . . . . . . . 3 Active Scanning Responses . | . . . . . . . . . . . . Cargo Convoy Interrupts 1 | . . . . 1 . . . . . . . Stealth | -11 -10 -10 -9 -7 -7 -7 -7 -6 -6 -6 -5 --------- Run | Yrd Mat Sub Rec Fac Low Low Dat Pro Fac DSF Fac Distress Signals 10 | . 3 . . 2 . . . 1 . . 4 Communications Jammed . | . . . . . . . . . . . . Distress Signals . | . . . . . . . . . . . . Times Spotted 192 | . 14 20 5 29 5 18 . 19 3 8 71 Peak Tracking Total 9 | . 6 4 3 3 3 7 . 9 2 4 9 Tactical Retreats 29 | . 1 2 . 2 . 2 . 2 1 2 17 Traps | -11 -10 -10 -9 -7 -7 -7 -7 -6 -6 -6 -5 ------- Run | Yrd Mat Sub Rec Fac Low Low Dat Pro Fac DSF Fac Traps Triggered 9 | . 3 . . 1 . . . . . 1 4 Indirectly . | . . . . . . . . . . . . Trap Hack Attempts . | . . . . . . . . . . . . Triggered . | . . . . . . . . . . . . Disarmed . | . . . . . . . . . . . . Reprogrammed . | . . . . . . . . . . . . Reused . | . . . . . . . . . . . . Traps Extracted . | . . . . . . . . . . . . Installed . | . . . . . . . . . . . . Triggered . | . . . . . . . . . . . . Machines | -11 -10 -10 -9 -7 -7 -7 -7 -6 -6 -6 -5 ---------- Run | Yrd Mat Sub Rec Fac Low Low Dat Pro Fac DSF Fac Machines Disabled 10 | . 2 4 1 1 . . . . . . 2 Max in Single Turn 3 | . 2 3 1 1 . . . . . . 2 Machines Repaired . | . . . . . . . . . . . . Machines Dismantled . | . . . . . . . . . . . . Machines Sabotaged . | . . . . . . . . . . . . Overloaded Fab Kills . | . . . . . . . . . . . . Hacking | -11 -10 -10 -9 -7 -7 -7 -7 -6 -6 -6 -5 --------- Run | Yrd Mat Sub Rec Fac Low Low Dat Pro Fac DSF Fac Machines Accessed 34 | . 6 2 14 5 . . 4 . 1 . 2 Terminals 19 | . 6 . 6 4 . . . . 1 . 2 Fabricators . | . . . . . . . . . . . . Repair Stations . | . . . . . . . . . . . . Recycling Units 8 | . . . 7 1 . . . . . . . Scanalyzers . | . . . . . . . . . . . . Garrison Access . | . . . . . . . . . . . . Total Hacks 122 | . 17 5 50 15 . . 29 . 2 . 4 Successful 85 | . 11 5 29 8 . . 29 . 1 . 2 Failed 37 | . 6 . 21 7 . . . . 1 . 2 Catastrophic 3 | . . . 2 1 . . . . . . . Database Lockouts . | . . . . . . . . . . . . Manual 58 | . 14 . 27 15 . . . . . . 2 Terminals 60 | . 17 . 25 12 . . . . 2 . 4 Fabricators . | . . . . . . . . . . . . Repair Stations . | . . . . . . . . . . . . Recycling Units 21 | . . . 18 3 . . . . . . . Scanalyzers . | . . . . . . . . . . . . Garrison Access . | . . . . . . . . . . . . Terminal Hacks 51 | . 4 5 12 . . . 29 . 1 . . Record 20 | . . 4 5 . . . 11 . . . . Part Schematic 12 | . . . 2 . . . 10 . . . . Robot Schematic 5 | . . . . . . . 5 . . . . Robot Analysis 3 | . 3 . . . . . . . . . . Prototype ID Bank 5 | . . . 2 . . . 3 . . . . Open DSF 1 | . . . . . . . . . 1 . . Terminal Index 2 | . 1 . 1 . . . . . . . . Derelict Proto ID Bank 1 | . . 1 . . . . . . . . . Release Object 2 | . . . 2 . . . . . . . . Fabricator Hacks . | . . . . . . . . . . . . Repair Station Hacks . | . . . . . . . . . . . . Recycling Unit Hacks 4 | . . . 4 . . . . . . . . Retrieve Components 4 | . . . 4 . . . . . . . . Scanalyzer . | . . . . . . . . . . . . Garrison Access Hacks . | . . . . . . . . . . . . Unauthorized Hacks 30 | . 7 . 13 8 . . . . . . 2 Terminals 20 | . 7 . 6 5 . . . . . . 2 Botnet 4 | . 1 . 1 1 . . . . . . 1 Operators 2 | . 1 . . 1 . . . . . . . Skim 14 | . 5 . 5 3 . . . . . . 1 Fabricators . | . . . . . . . . . . . . Repair Stations . | . . . . . . . . . . . . Recycling Units 10 | . . . 7 3 . . . . . . . Reject 1 | . . . . 1 . . . . . . . Recyclers 1 | . . . . 1 . . . . . . . Mask 1 | . . . . 1 . . . . . . . Tunnel 7 | . . . 7 . . . . . . . . Scanalyzers . | . . . . . . . . . . . . Garrison Access . | . . . . . . . . . . . . Data Cores Recovered . | . . . . . . . . . . . . Used . | . . . . . . . . . . . . Hacking Detections 21 | . 6 . 8 5 . . . . . . 2 Full Trace Events . | . . . . . . . . . . . . Feedback Events . | . . . . . . . . . . . . Feedback Blocked . | . . . . . . . . . . . . Robot Schematics Acquired 5 | . . . . . . . 5 . . . . Robots Built . | . . . . . . . . . . . . Authchips . | . . . . . . . . . . . . Time . | . . . . . . . . . . . . Total Robot Build Rating . | . . . . . . . . . . . . Part Schematics Acquired 12 | . . . 2 . . . 10 . . . . Parts Built . | . . . . . . . . . . . . Authchips . | . . . . . . . . . . . . Time . | . . . . . . . . . . . . Total Part Build Rating . | . . . . . . . . . . . . Parts Repaired . | . . . . . . . . . . . . Time . | . . . . . . . . . . . . Parts Recycled . | . . . . . . . . . . . . Recycled Matter . | . . . . . . . . . . . . Retrieved Matter . | . . . . . . . . . . . . Retrieved Components 6 | . . . 6 . . . . . . . . Parts Scanalyzed . | . . . . . . . . . . . . Part Schematics Acquired . | . . . . . . . . . . . . Parts Damaged . | . . . . . . . . . . . . Bothacking | -11 -10 -10 -9 -7 -7 -7 -7 -6 -6 -6 -5 ------------ Run | Yrd Mat Sub Rec Fac Low Low Dat Pro Fac DSF Fac Used RIF Installer . | . . . . . . . . . . . . Robots Hacked 1 | . . . . . . . . . 1 . . Non-combat 1 | . . . . . . . . . 1 . . Combat . | . . . . . . . . . . . . Robot Hacks Applied 1 | . . . . . . . . . 1 . . no_distress 1 | . . . . . . . . . 1 . . Relay Couplers Released . | . . . . . . . . . . . . Fabnet Peak Effective % . | . . . . . . . . . . . . Robots Rewired 6 | . . . 4 . . 2 . . . . . Allies Hacked . | . . . . . . . . . . . . Hacks Repelled . | . . . . . . . . . . . . Allies | -11 -10 -10 -9 -7 -7 -7 -7 -6 -6 -6 -5 -------- Run | Yrd Mat Sub Rec Fac Low Low Dat Pro Fac DSF Fac Total Allies 7 | . . . 4 . . 2 . 1 . . . Largest Group 4 | . . . 4 . . 2 1 2 . . . Highest-Rated Group 116 | . . . 33 . . 50 20 116 . . . Highest-Rated Ally 96 | . . . 10 . . 30 20 96 . . . Total Orders 1 | . . . . . . . . . . . 1 EXPLORE 1 | . . . . . . . . . . . 1 Ally Attacks 63 | . . . 19 . . 3 . 41 . . . Total Damage 1719 | . . . 201 . . 97 . 1421 . . . Kills 10 | . . . 3 . . 1 . 6 . . . Allies Corrupted . | . . . . . . . . . . . . Allies Melted 1 | . . . 1 . . . . . . . . Intel | -11 -10 -10 -9 -7 -7 -7 -7 -6 -6 -6 -5 ------- Run | Yrd Mat Sub Rec Fac Low Low Dat Pro Fac DSF Fac Active Infowar (turns) 5096 | 13 878 13 . 1278 465 . . . 243 116 2090 Sensors 1653 | . . . . . 465 . . . 91 106 991 Terrain 384 | . . . . . . . . . . . 384 Seismic 904 | 13 878 13 . . . . . . . . . Decoding 761 | . . . . . . . . . 243 116 402 T.N.C. 1304 | . . . . . . . . . . . 1304 Machine Analysis 1278 | . . . . 1278 . . . . . . . Robot Analysis Total 3 | . 3 . . . . . . . . . . Derelict Logs Recovered 4 | . . 1 . . 1 2 . . . . . Drone Launches 2 | . . . . . . . . . . . 2 Drone Recoveries . | . . . . . . . . . . . . Decoded 0b10 Intel 50 | . . . . . . . . . 15 8 27 Items 50 | . . . . . . . . . 15 8 27 Exploration | -11 -10 -10 -9 -7 -7 -7 -7 -6 -6 -6 -5 ------------- Run | Yrd Mat Sub Rec Fac Low Low Dat Pro Fac DSF Fac Turns Passed 15309 | 122 878 3138 2104 1604 2155 2094 121 435 243 116 2299 Spaces Moved 8153 | 49 391 1481 839 959 1058 1096 84 311 350 137 1398 Core 585 | 14 4 . 54 . . . . 102 268 135 8 Treads 2571 | 35 387 806 237 337 20 515 . . . . 234 Legs 3144 | . . 173 548 197 1038 263 84 209 82 2 548 Wheels 831 | . . 502 . . . . . . . . 329 Hover 512 | . . . . 425 . . . . . . 87 Flight 510 | . . . . . . 318 . . . . 192 Fastest Speed 35 | 50 160 120 50 90 140 112 112 50 50 50 35 Average Speed 156 | 128 175 200 193 133 163 170 142 119 64 64 127 Slowest Speed 850 | 160 850 480 260 204 230 230 154 154 112 112 240 Overloaded Moves 4 | . . . . . . . . . . . 4 Propulsion Burnouts . | . . . . . . . . . . . . Robots Hopped 10 | . . . . . . . . . . . 10 Cave-ins Triggered . | . . . . . . . . . . . . Exploration Rate (%) 57 | 3 67 61 98 29 93 92 69 56 5 86 32 Regions Visited 11 Branch Regions 6 Pre-discovered Areas 11 | . 1 1 8 . . . 1 . . . . Known Exits Taken 3 | . 1 . . . . 1 . . 1 . . Unknown Exits Taken 7 | 1 . 1 1 1 1 . 1 1 . . . Scrap Searched 14 | . . 2 . . 3 8 . 1 . . . Spaces Dug 22 | . 3 . . 1 . . . . . . 18 Terrain Destroyed 168 | . 61 33 5 6 2 . . 33 . . 28 Melee 6 | . . . . . . . . . . . 6 Projectile 38 | . 4 1 5 6 . . . . . . 22 AOE 122 | . 57 32 . . . . . 33 . . . Terrain Rammed . | . . . . . . . . . . . . Walls Destroyed . | . . . . . . . . . . . . Machines Disabled . | . . . . . . . . . . . . Actions | -11 -10 -10 -9 -7 -7 -7 -7 -6 -6 -6 -5 --------- Run | Yrd Mat Sub Rec Fac Low Low Dat Pro Fac DSF Fac Total 9857 | 84 477 1592 1261 1146 1432 1237 86 349 364 157 1672 Wait 928 | 5 5 20 330 103 322 48 . 6 3 12 74 Move 8123 | 48 390 1480 838 958 1057 1095 83 310 349 136 1379 Hop 9 | . . . . . . . . . . . 9 Pick Up 67 | 10 9 9 . 8 10 5 . 1 . 2 13 Fast Attach 48 | 3 4 10 5 6 . 4 . 1 3 . 12 Attach 27 | 4 . 1 . 1 1 3 1 4 2 1 9 Detach 11 | . . . . 1 . . 2 1 . . 7 Swap 26 | . 9 8 . 3 2 1 . . 1 . 2 Drop 67 | 2 4 25 8 3 2 8 . 2 1 . 12 Fire 380 | 12 54 36 36 57 38 57 . 24 . . 66 Melee 95 | . . . . . . . . . 1 5 89 Ram . | . . . . . . . . . . . . Kick 8 | . . . 3 1 . . . . 4 . . Crush 10 | . 2 . 3 5 . . . . . . . Escape Stasis 1 | . . . . . . . . . . 1 . Rewire 54 | . . . 38 . . 16 . . . . . Trap . | . . . . . . . . . . . . Miscellaneous 3 | . . 3 . . . . . . . . . Route ------- -11/Scrapyard -10/Materials (discovered 5 exits: *Mat x3 / [*Min] / *Sub) -10/Subcaves (discovered 4 exits: [*Mat x2] / *Rec / *Scr) -9/Recycling -7/Factory (discovered 2 exits: *Fac / [*Low]) -7/Lower Caves -7/Lower Caves (discovered 2 exits: *Fac / *Dat) -7/Data Miner -6/Proximity Caves -6/Factory (discovered 2 exits: Ext / DSF) -6/DSF -5/Factory History --------- Turn | Location | Event 7 | -11/Scrapyard | Discovered new exit (range 13) 123 | -11/Scrapyard | Entered Materials 308 | -10/Materials | Build established: Mutant 426 | -10/Materials | Discovered new exit (range 13) 576 | -10/Materials | Discovered new exit (range 11) 652 | -10/Materials | Identified exit to Materials 717 | -10/Materials | Learned Storage security intel 815 | -10/Materials | Learned location of 2 exits from Mines 852 | -10/Materials | Identified exit to Subcaves 877 | -10/Materials | Loaded intel: 21 trap records 912 | -10/Materials | Learned location of Mines (-9) 944 | -10/Materials | Learned location of 2 exits from Mines 1001 | -10/Materials | Entered Subcaves 1001 | -10/Subcaves | Discovered new exit (range 10) 1002 | -10/Subcaves | Approached by a straggling Scientist 1097 | -10/Subcaves | Ambushed by swarm of Subdwellers 1572 | -10/Subcaves | Discovered new exit (range 14) 1663 | -10/Subcaves | A swath of the cavern ceiling suddenly collapsed 1811 | -10/Subcaves | Ambushed by angry Subdweller bent on revenge 1974 | -10/Subcaves | Shifting Twisted Machinery released Sub. Beam Cannon 2223 | -10/Subcaves | Discovered new exit (range 9) 2229 | -10/Subcaves | Found Prototype Energy Cannon 2279 | -10/Subcaves | Visited 4L-MR0's lab 2284 | -10/Subcaves | Identified Powered Cannon 2287 | -10/Subcaves | Build established: Subdweller-Mutant 2291 | -10/Subcaves | Found Tower Shield 2292 | -10/Subcaves | Attached Tower Shield, gained temporary slots: Power, Propulsion x2, Utility x2, Weapon x2 2422 | -10/Subcaves | Scientist uncovered a shortcut to Scraptown 2667 | -10/Subcaves | Build established: Subdweller-Tank 4097 | -10/Subcaves | Visited Clippyterm 4139 | -10/Subcaves | Entered Recycling 5280 | -9/Recycling | Discovered new exit (range 15) 5333 | -9/Recycling | Learned Storage garrison access intel 5402 | -9/Recycling | Learned Storage stockpile data 5460 | -9/Recycling | Learned Materials garrison access intel 5510 | -9/Recycling | Learned location of 2 exits from Materials 5535 | -9/Recycling | Scanned before Scraplab entrance 5551 | -9/Recycling | Identified exit to Scraptown 5568 | -9/Recycling | Entered Scraplab 5588 | -9/Recycling | Angered Scraplab inhabitants 5604 | -9/Recycling | Found Prototype Device 5604 | -9/Recycling | Identified Scrap Engine 5651 | -9/Recycling | Core integrity fell below 50% 5674 | -9/Recycling | Lost 4 allies 5679 | -9/Recycling | Learned location of 1 exit from Storage 6034 | -9/Recycling | Build established: Construct 6243 | -9/Recycling | Entered Factory 6243 | -7/Factory | Evolved 6 slots: Power x1, Propulsion x1, Utility x3, Weapon x1 7497 | -7/Factory | Discovered new exit (range 13) 7694 | -7/Factory | Garrison activated, responded to threat 7708 | -7/Factory | Cargo convoy interrupted 7793 | -7/Factory | Discovered new exit (range 16) 7807 | -7/Factory | Lost 6 allies 7847 | -7/Factory | Entered Lower Caves 9754 | -7/Lower Caves | Discovered new exit (range 6) 10002 | -7/Lower Caves | Entered another Lower Caves area 10219 | -7/Lower Caves | Discovered new exit (range 9) 10803 | -7/Lower Caves | Identified exit to Data Miner 10968 | -7/Lower Caves | Spotted B-75 Beast 11105 | -7/Lower Caves | Core integrity fell below 50% 11118 | -7/Lower Caves | Destroyed B-75 Beast 11139 | -7/Lower Caves | Lost 6 parts (2p2u2w) 11334 | -7/Lower Caves | Encountered a Warlord checkpoint 11423 | -7/Lower Caves | Build established: Scavenger-Construct 11712 | -7/Lower Caves | Attracted the attention of an 0b10 outpost 11845 | -7/Lower Caves | Build established: Construct 11897 | -7/Lower Caves | Learned Factory terminal intel 11929 | -7/Lower Caves | Attracted the attention of an 0b10 checkpoint 12096 | -7/Lower Caves | Entered Data Miner 12096 | -7/Data Miner | Accompanied by 1 ally 12096 | -7/Data Miner | Discovered new exit (range 6) 12118 | -7/Data Miner | Met Data Miner 12149 | -7/Data Miner | Learned location of Section 7 (-2) 12149 | -7/Data Miner | Acquired the access code to Warlord's prototype stash 12175 | -7/Data Miner | Received God Mode back door access code from Data Miner 12217 | -7/Data Miner | Entered Proximity Caves 12217 | -6/Proximity Caves | Accompanied by 1 ally 12321 | -6/Proximity Caves | Escorted by Enhanced Grunt 12323 | -6/Proximity Caves | Spotter reported a threat 12419 | -6/Proximity Caves | Spotter reported a threat 12472 | -6/Proximity Caves | Spotter reported a threat 12525 | -6/Proximity Caves | Spotter reported a threat 12543 | -6/Proximity Caves | Attracted the attention of an 0b10 outpost 12576 | -6/Proximity Caves | Core integrity fell below 20% 12582 | -6/Proximity Caves | Attached Powered Cannon, gained temporary slot: Power 12629 | -6/Proximity Caves | Lost 6 parts (1p2u3w) 12643 | -6/Proximity Caves | Discovered new exit (range 15) 12652 | -6/Proximity Caves | Entered Factory 12652 | -6/Factory | Evolved 2 slots: Utility x2 12653 | -6/Factory | Identified exit to Extension 12654 | -6/Factory | Loaded intel: 27 terminal locations 12895 | -6/Factory | Identified exit to DSF 12895 | -6/Factory | Entered DSF 12918 | -6/DSF | Found Launcher Loader 12925 | -6/DSF | Additional patrols routed to DSF 12944 | -6/DSF | Discovered new exit (range 14) 13010 | -6/DSF | Identified exit to Factory 13011 | -6/DSF | Entered Factory 13011 | -5/Factory | Evolved 2 slots: Propulsion x1, Utility x1 13233 | -5/Factory | Build established: Mutant 13480 | -5/Factory | Lost 6 parts (2p1n3u) 13669 | -5/Factory | Lost 3 parts (1n2u) 14103 | -5/Factory | Build established: Assassin 14489 | -5/Factory | Core integrity fell below 50% 14535 | -5/Factory | Build established: Construct 15137 | -5/Factory | Core integrity fell below 20% 15189 | -5/Factory | Lost 5 parts (2p1n2w) 15200 | -5/Factory | System corruption reached 10% 15310 | -5/Factory | Destroyed by P-70 Sage with High-powered Shock Rifle Last Messages --------------- Exoskeleton. 15299_ Arm. Scrap Engine suffers catastophic network destabilization. 15299_ Scrap Engine core remains intact and functional. 15300_ System corrupted: Matter fused (-10). 15300_ Dropped Lrg. Storage Unit. 15300_ K-01 Serf cleans the Terminal. 15304_ Scrap Engine constructs Cooled-NPT Exoskeleton. 15306_ Scrap Engine consumes Lyr. Heavy Armor Plating. 15306_ Nuclear Reactor explodes. 15306_ Scrap Engine destroyed. 15307_ The unstable cave ceiling collapses. 15307_ Acquired Hvy. Shock Bomb Launcher. 15307_ W-25 Informer sends out distress signal. 15309_ Dropped Hvy. Shock Bomb Launcher. 15309_ Cooled-NPT Exoskeleton destroyed. 15309_ K-01 Serf collects debris. Map ----- +----------------------------------------------------+ | ??????????? #?????????????????????????????? | | ???????????? #?????????????????????????????? | | ???????????? +?????????????????????????????? | | ????????????? #?????????????????????????????? | | ????????????? #?????????????????##??????????? | | ?????????????# #????????????????? ??????????? | | ?????????????# #????????????# """ "???#??????? | | ?????????????# #????????????# """ """ #??????? | | ?????????????# #????????????# """ """ #??????? | | ?????????????# #????????????# #??????? | | ?????????????# #????????????# ""T"" #??????? | | ?????????????# #????????????# """"" ????????? | | ?????????????# #?????????????? ??????????? | | ?????????????# % #################+###########?? | | ?????????????# """"" #?? | | ?????????????# k""T"" #?? | | ?????????????# % * #?? | | ?????????????# ! p % #?? | | ?????????????# !!p p = #?? | | ?????????????# ### k ###### #?? | | ############## g u # p #??# ### | | % << # #??# | | g < u # #??# | | R uw ] #??# | | ! ##??# | | @ #??# | | #+############ ###??######### | | #?????# #??????# | | #?????# # Y ##??????# | | #?????# # #???????# """" | | #?????# ### # ###???????# """" | | ####### #??######?????????# """" | | ! + #?????????????????# """" | | ####+####w##########?????????????????# | | #??# #????????????????????# """" | | #??# "" #???????????????????????""" | | ########??# "" #????????????????????????"" | | ??????????# [ """ #????????????????????????"" | | ??????????# """ #?????????????????????????? | | ??????????# """ #?????????????????????????? | | ??????????# ""#?????????????????????????? | | ??????????# ""#?????????????????????????? | | ??????????# G#?????????????????????????? | | ??????????# ""??????????????????????????? | | ??????????# ""#?????????????????????????? | | ??????????# ??????????????????????????? | | ???????????############??????????????????????????? | | ???????????????????!?????????????????????????????? | | ##???????????????????????????????????????????????? | | #???????????????????????????????????????????????? | +----------------------------------------------------+ Best States ------------- Heat Dissipation 59 Energy Generation 37 Energy Capacity 970 Matter Stores 300 Matter Capacity 300 Sight Range 16 Robot Scan Range 15 Terrain Scan Range 16 Terrain Scan Density 10 Corruption Containment 8 Corruption Block 14 Armor Coverage 2800 Resistance: TH 15 Evasion (%) 57 Targeting Accuracy 5 Recoil Reduction 3 Offensive Hacking 20 Item Schematics ----------------- System Restoration Module | -9/Recycling | Hacked Armor Integrity Analyzer | -9/Recycling | Hacked Combat Drone Bay | -7/Data Miner | Free Lgt. Regenerative Plating | -7/Data Miner | Free Cld. Cesium-ion Thruster | -7/Data Miner | Free Antimatter Cannon | -7/Data Miner | Free Gravity Neutralizer | -7/Data Miner | Free Adv. Field Recycling Unit | -7/Data Miner | Free Gyrokinetic Inverter | -7/Data Miner | Free Imp. Plasma Cutter | -7/Data Miner | Free Hvy. Flak Cannon | -7/Data Miner | Free Imp. Shock Absorption System | -7/Data Miner | Free Robot Schematics ------------------ L-41 Fighter | -7/Data Miner | Free E-15 Imp | -7/Data Miner | Free M-14 Sweeper | -7/Data Miner | Free M-28 Smith | -7/Data Miner | Free Y-54 Guardian | -7/Data Miner | Free Fabricated ------------ Nothing Repaired ---------- Nothing Alien Tech Used ----------------- None Achievements -------------- None Challenges ------------ None Game ------ Seed RefineryNeutrinoBrace Manual? 0 Play Time 01:37:49 Cumulative 468.0 hours Start 2024.11.17 @ 17:05:35 End 2024.11.17 @ 22:01:09 Sessions 3 Manual Loads 0 Difficulty Rogue Special Mode None Game No. 314 Rogue 309 Adventurer 5 Explorer 0 Win Type - Total 11 Types 5/0/5/0/0/0/1/0/0 Lore% 79 Gallery% 90 Achievement% 76 Wizard Run 0 Options --------- Layout 2 ASCII 0 Keyboard 0 Movement Mouse Keybinds 0 Fullscreen 2 Font 24/Smallcaps Map View 50x44 Zoom Use 0% Tactical HUD 1 Map Filters NONE Filters NONE Steam 1 RUN: cd40f53f-f7c7-4844-9a88-4bf551fb4f89